bitfinex-derivatives/quotes_ETHF0:USTF0_20260113
["timestamp","ask_amount","ask_price","bid_price","bid_amount"]
[1768344867953,4.2552117,3332.8,3332.2,1.175]
[1768344870153,4.2552117,3332.8,3332.3,1.175]
[1768344870655,3.63532308,3332.8,3332.3,1.175]
[1768344871052,0.00339783,3332.8,3332.3,1.32509]
[1768344872948,7.83e-06,3332.8,3332.4,0.15008]
[1768344874753,7.83e-06,3332.8,3331.9,2.60091085]
[1768344874958,7.83e-06,3332.8,3332.0,4.178]
[1768344875167,3.63193308,3332.8,3332.4,0.15008]
[1768344876254,3.63193308,3332.8,3332.5,1.176]
[1768344876960,6.92046234,3332.8,3332.6,1.176]
[1768344877148,6.92046234,3332.8,3332.4,0.15008]
[1768344877355,6.92046234,3332.8,3332.5,1.176]
[1768344877654,3.28852926,3332.6,3332.4,0.15008]
[1768344877858,3.28852926,3332.6,3332.5,1.176]
[1768344878652,3.28852926,3332.6,3331.6,0.15012]
[1768344878851,3.28852926,3332.4,3331.7,1.176]
[1768344880656,3.28852926,3332.4,3330.6,0.0037833]
[1768344880657,3.28852926,3332.2,3330.6,0.0037833]
[1768344880961,3.28852926,3332.2,3330.9,0.15015]
[1768344881461,3.28852926,3332.0,3330.9,0.15015]
[1768344881664,3.28852926,3332.0,3331.0,1.176]
[1768344882162,3.28852926,3332.0,3330.9,0.15015]
[1768344882354,3.28852926,3331.8,3330.9,0.15015]
[1768344882554,3.28852926,3331.8,3331.0,1.176]
[1768344883661,3.63192525,3331.7,3330.9,0.15015]
[1768344883866,6.92045451,3331.7,3331.0,1.176]
[1768344885066,3.28852926,3331.6,3331.0,1.176]
[1768344886469,3.28852926,3331.6,3330.9,0.15015]
[1768344886663,3.28852926,3331.4,3330.9,1.32615]
[1768344886868,3.28852926,3331.4,3330.9,0.15015]
[1768344887065,3.63192525,3331.3,3330.9,0.15015]
[1768344887367,3.28852926,3331.2,3330.7,1.176]
[1768344887568,3.28852926,3331.2,3330.9,0.15015]
[1768344887761,1.70394589,3332.1,3330.9,0.15015]
[1768344887762,6.92045451,3331.1,3330.9,0.15015]
[1768344888064,3.28852926,3331.1,3330.9,0.15015]
[1768344888768,3.5202387,3331.0,3330.9,0.15015]
[1768344889068,3.40849735,3331.0,3330.9,0.15015]
[1768344889267,3.2968286,3331.0,3330.9,0.15015]
[1768344889866,3.18510391,3331.0,3330.8,1.177]
[1768344890065,6.47363317,3331.0,3330.6,0.0037833]
[1768344890267,6.47363317,3331.0,3330.4,2.75108085]
[1768344890268,3.28852926,3330.9,3330.4,2.75108085]
[1768344890565,3.28852926,3330.9,3329.7,0.1502]
[1768344890767,3.28852926,3330.9,3329.1,0.15023]
[1768344890768,3.28852926,3330.7,3329.1,0.15023]
[1768344891067,3.28852926,3330.7,3328.1,6.12562939]
[1768344891068,3.28852926,3330.2,3328.5,0.15026]
[1768344891271,3.2924037,3330.2,3328.6,1.178]
[1768344891565,3.28852926,3329.9,3328.5,0.15330638]
[1768344891755,3.28852926,3329.6,3328.6,1.178]
[1768344891959,3.28852926,3329.6,3328.5,0.00304638]
[1768344892159,3.18510391,3329.5,3328.5,0.00304638]
[1768344892462,3.18510391,3329.5,3328.5,1.18104638]
[1768344892868,3.18510391,3329.5,3328.6,1.178]
[1768344893067,3.18510391,3329.5,3328.5,0.00304638]
[1768344893264,6.47363317,3329.5,3328.5,0.00304638]
[1768344893470,3.28852926,3329.4,3327.7,0.3529056]
[1768344893964,3.28852926,3329.2,3327.8,1.179]
[1768344894271,3.28852926,3329.2,3327.7,0.3529056]
[1768344894468,3.28852926,3329.0,3327.7,0.35502703]
[1768344894857,3.28852926,3328.8,3327.7,0.35502703]
[1768344895063,3.28852926,3328.8,3327.7,0.20473703]
[1768344895263,3.18510391,3328.7,3326.8,3.30459957]
[1768344895466,3.18510391,3328.7,3327.5,3.45489957]
[1768344895669,3.18510391,3328.7,3327.9,0.15028]
[1768344895867,3.18510391,3328.7,3328.0,1.32928]
[1768344896162,3.18510391,3328.6,3328.0,0.15362531]
[1768344896357,3.28852926,3329.7,3328.1,1.179]
[1768344896771,3.28852926,3329.5,3328.2,1.179]
[1768344897069,3.28852926,3329.5,3328.0,0.00334531]
[1768344897462,3.28852926,3329.3,3328.0,0.00334531]
[1768344897665,3.28852926,3329.8,3328.1,1.179]
[1768344898072,3.18510391,3329.7,3328.0,0.15362531]
[1768344898263,3.28852926,3329.6,3328.1,1.179]
[1768344898462,3.28852926,3329.6,3328.0,0.15362531]
[1768344898665,3.28852926,3329.4,3328.0,0.15362531]
[1768344898863,3.28852926,3329.4,3328.0,0.00334531]
[1768344899270,3.28852926,3329.2,3328.0,0.00334531]
[1768344899572,3.28852926,3329.2,3327.5,1.179]
[1768344899774,3.28852926,3329.0,3327.0,0.15033]
[1768344899970,3.28852926,3329.0,3327.1,1.179]
[1768344900177,3.28852926,3328.8,3326.2,3.30459957]
[1768344900472,0.00387444,3330.2,3325.9,6.24248534]
[1768344900473,4.44e-06,3330.2,3329.8,3.30459957]
[1768344900674,3.18510391,3330.2,3329.3,3.30459957]
[1768344900870,3.18510391,3330.2,3328.9,0.15024]
[1768344901072,3.18510391,3330.2,3328.3,3.30459957]
[1768344901265,3.28852926,3330.1,3328.1,0.15028]
[1768344901568,3.29233605,3330.1,3328.2,1.179]
[1768344901869,3.18510391,3330.0,3328.4,3.45485957]
[1768344902462,3.18510391,3330.0,3328.5,4.184]
[1768344902663,3.18510391,3330.0,3328.4,0.15026]
[1768344902863,3.18510391,3330.0,3328.1,0.00229625]
[1768344903169,3.28852926,3329.9,3328.1,0.00229625]
[1768344903370,3.28852926,3329.9,3328.1,1.18129625]
[1768344903569,3.28852926,3329.7,3328.1,0.00229625]
[1768344903971,3.18510391,3329.6,3328.1,0.00229625]
[1768344905570,3.18510391,3329.6,3328.3,3.40248655]
[1768344905771,3.18510391,3329.6,3328.4,3.55274655]
[1768344906273,0.00380679,3330.1,3329.1,0.15023]
[1768344906478,3.58411779,3330.8,3329.2,1.32923]
[1768344907473,3.58411779,3330.8,3329.3,0.15022]
[1768344907674,0.00285593,3330.8,3329.6,0.1502]
[1768344908069,0.00285593,3330.8,3329.7,0.1502]
[1768344909083,0.00285593,3330.8,3329.8,1.3292]
[1768344912085,3.58411779,3331.9,3330.1,0.15018]
[1768344912577,3.58411779,3331.9,3330.3,0.15018]
[1768344913078,3.58698526,3331.9,3330.4,0.15017]
[1768344913281,3.58698526,3331.9,3330.5,0.15017]
[1768344913478,0.00286747,3331.9,3330.6,0.15016]
[1768344913787,0.00286747,3331.9,3330.7,0.15016]
[1768344914079,0.00286747,3331.9,3330.8,1.179]
[1768344914978,0.00286747,3331.9,3331.0,0.15014]
[1768344915370,0.00286747,3331.9,3330.8,1.179]
[1768344915579,0.00286747,3331.9,3331.1,0.15014]
[1768344916189,3.58411779,3332.9,3331.1,0.15014]
[1768344916479,3.58411779,3332.9,3331.2,0.15014]
[1768344917085,3.5873,3332.9,3331.2,0.15014]
[1768344917475,3.5873,3332.9,3330.5,0.00338404]
[1768344917672,3.5873,3332.9,3331.1,1.179]
[1768344917880,3.5873,3332.9,3330.6,0.15016]
[1768344918183,3.5873,3332.9,3330.7,0.989]
[1768344918785,3.5873,3332.9,3330.7,1.13916]
[1768344919088,3.5873,3332.9,3330.8,0.15015]
[1768344920082,3.5873,3332.9,3330.9,1.179]
[1768344920276,3.5873,3332.9,3330.8,0.15015]
[1768344921990,3.45909385,3332.7,3330.5,0.00338404]
[1768344924304,3.45909385,3332.7,3330.7,0.15015]
[1768344924602,3.45909385,3332.7,3330.8,0.15015]
[1768344925808,3.45909385,3332.7,3330.9,0.15015]
[1768344928406,3.45909385,3332.7,3330.5,0.00338404]
[1768344932007,3.45909385,3332.5,3330.5,0.00338404]
[1768344937514,3.45909385,3332.5,3330.2,0.15018]
[1768344938519,3.45909385,3332.5,3330.3,0.15018]
[1768344939618,3.45909385,3332.5,3330.2,3.50207696]
[1768344939819,3.45909385,3332.5,3330.5,6.09983153]
[1768344940509,3.45909385,3332.5,3330.6,2.60161955]
[1768344940714,3.45909385,3332.5,3330.8,0.15015]
[1768344941820,3.45909385,3332.5,3330.8,3.64836198]
[1768344942323,3.45909385,3332.5,3330.9,1.178]
[1768344945018,3.45909385,3332.5,3330.8,0.15015]
[1768344950027,3.45909385,3332.5,3330.8,3.64836198]
[1768344950225,0.00318221,3332.9,3330.8,3.64836198]
[1768344950420,0.00318221,3332.9,3330.9,0.15015]
[1768344950615,0.00318221,3332.9,3330.9,3.64836198]
[1768344951727,3.44812859,3332.9,3330.9,3.64836198]
[1768344951919,3.44812859,3332.9,3330.9,6.24998153]
[1768344952120,3.44812859,3332.9,3330.9,3.64836198]
[1768344952321,3.44812859,3332.9,3330.9,6.24998153]
[1768344952526,3.44812859,3332.9,3331.0,3.49821198]
[1768344953418,0.00318221,3332.9,3331.2,3.64834198]
[1768344954424,0.00318221,3332.9,3331.2,6.24996153]
[1768344954624,0.00318221,3332.9,3331.3,3.49821198]
[1768344955527,0.00318221,3332.9,3331.4,3.49821198]
[1768344955731,3.44812859,3332.9,3331.5,1.179]
[1768344956026,0.00318221,3332.9,3331.5,1.179]
[1768344956223,0.00318221,3332.9,3331.6,0.15012]
[1768344956429,0.00318221,3332.9,3331.6,6.24995153]
[1768344956629,0.00318221,3332.9,3331.7,3.49821198]
[1768344956830,0.00318221,3332.9,3331.8,3.003]
[1768344958434,3.44494638,3333.4,3331.8,3.003]
[1768344959028,3.44494638,3334.1,3331.8,6.50121198]
[1768344959427,3.44735676,3334.1,3331.9,3.49821198]
[1768344960130,3.44735676,3334.1,3331.9,3.64831198]
[1768344960335,0.00241038,3334.1,3331.9,3.49821198]
[1768344960631,3.44494638,3334.0,3332.2,2.60161955]
[1768344960835,3.44494638,3334.0,3332.3,1.18]
[1768344961030,3.44735676,3334.1,3332.4,3.15308]
[1768344961338,3.44735676,3334.1,3332.5,1.18]
[1768344961936,3.44735676,3334.1,3332.6,1.18]
[1768344962138,3.44735676,3334.1,3332.7,1.18]
[1768344963043,3.44735676,3334.1,3332.6,1.18213795]
[1768344963247,3.44735676,3334.1,3332.6,0.00213795]
[1768344963844,3.44735676,3334.1,3331.8,2.75172955]
[1768344964030,3.44735676,3334.1,3331.8,0.15011]
[1768344964234,3.44735676,3334.1,3331.6,2.60161955]
[1768344964435,3.44735676,3334.1,3331.7,1.18]
[1768344964943,3.41946672,3333.8,3330.5,2.75178955]
[1768344965144,3.41946672,3333.8,3330.6,1.18]
[1768344965334,3.41946672,3333.7,3330.6,1.18]
[1768344965837,3.41946672,3333.7,3330.6,1.18332578]
[1768344966037,3.41946672,3333.5,3330.6,1.18332578]
[1768344966234,3.41946672,3333.3,3330.6,1.18332578]
[1768344968937,3.41946672,3333.3,3330.6,1.33348578]
[1768344970736,3.41946672,3333.3,3330.7,3.50404141]
[1768344971338,3.41946672,3333.3,3330.7,0.15016]
[1768344972434,4.984,3333.2,3330.7,0.15016]
[1768344972640,3.41946672,3333.1,3330.7,0.15016]
[1768344977348,3.41946672,3333.1,3330.9,0.15016]
[1768344981350,5.15073115,3333.1,3331.0,0.15016]
[1768344981549,3.46994594,3333.0,3331.0,0.15016]
[1768344984157,3.46994594,3333.0,3331.0,3.66014379]
[1768344984455,3.46994594,3333.0,3331.1,0.15015]
[1768344985351,3.46994594,3333.0,3331.2,0.15015]
[1768344985545,3.46994594,3333.0,3331.3,0.15015]
[1768344985749,3.46994594,3333.0,3331.4,0.15014]
[1768344987658,3.46994594,3333.0,3331.4,3.66012379]
[1768344987857,3.46994594,3333.0,3331.0,2.60161955]
[1768344988056,3.46994594,3333.0,3331.1,1.18]
[1768344988454,3.46994594,3333.0,3331.2,3.50998379]
[1768344989560,3.46994594,3333.0,3331.2,3.66013379]
[1768344990256,3.46994594,3333.0,3331.2,0.15015]
[1768344990858,3.46994594,3332.7,3330.8,2.60161955]
[1768344991058,3.46994594,3332.7,3330.6,3.00632578]
[1768344992353,3.46994594,3332.7,3330.6,5.60794533]
[1768344992656,3.46994594,3332.5,3330.6,5.60794533]
[1768344993259,3.46994594,3332.5,3330.6,3.00632578]
[1768344993454,3.46994594,3332.5,3330.6,5.60794533]
[1768344994362,3.46994594,3332.5,3330.7,2.60161955]
[1768344997558,3.46994594,3332.5,3330.6,5.60794533]
[1768344998862,3.46994594,3332.5,3330.7,6.04096962]
[1768345000367,3.3733952,3334.0,3330.8,3.43935007]
[1768345000667,3.3733952,3334.0,3331.3,2.60161955]
[1768345000866,3.3733952,3334.0,3331.4,1.185]
[1768345001561,3.3733952,3334.0,3331.3,2.60161955]
[1768345001866,3.3733952,3334.0,3331.5,1.185]
[1768345002066,3.3733952,3334.0,3331.6,1.185]
[1768345002660,3.3733952,3333.8,3331.6,1.185]
[1768345006670,3.3733952,3333.8,3331.6,1.33513]
[1768345008575,3.3733952,3333.8,3331.7,0.15013]
[1768345009777,3.3733952,3333.8,3331.8,1.184]
[1768345011071,3.3733952,3333.8,3331.7,0.15013]
[1768345011277,1.73101138,3332.8,3331.7,0.15013]
[1768345011676,5.10440658,3332.8,3331.7,0.15013]
[1768345013583,1.73101138,3332.8,3331.7,0.15013]
[1768345013978,1.73101138,3333.1,3331.7,0.15013]
[1768345014183,3.3733952,3333.0,3331.7,0.15013]
[1768345018996,3.3733952,3333.0,3331.6,1.184]
[1768345019772,3.3733952,3333.0,3331.5,1.184]
[1768345020387,3.3733952,3333.0,3331.3,0.15014]
[1768345020583,3.3733952,3333.0,3331.4,1.184]
[1768345021487,3.3733952,3333.0,3331.4,2.91501138]
[1768345021782,1.73101138,3333.4,3331.5,3.43935007]
[1768345022083,3.3733952,3333.5,3332.0,1.73101138]
[1768345022284,3.3733952,3333.9,3331.9,0.15012]
[1768345022583,1.73101138,3333.7,3332.0,1.185]
[1768345023181,3.3733952,3333.6,3332.0,2.91601138]
[1768345023371,3.3733952,3333.6,3332.1,1.73101138]
[1768345024384,3.3733952,3333.6,3332.2,1.185]
[1768345024780,3.3733952,3333.6,3332.3,1.185]
[1768345024982,5.10440658,3333.6,3332.3,1.185]
[1768345025178,0.00241038,3334.1,3331.9,0.15012]
[1768345025179,3.23679498,3333.2,3331.9,0.15012]
[1768345025378,3.23679498,3333.2,3331.9,1.33512]
[1768345031685,1.73101138,3333.5,3331.9,1.33512]
[1768345031898,3.23679498,3333.7,3331.9,3.06613138]
[1768345035291,3.23679498,3333.7,3332.1,2.60161955]
[1768345036682,3.23679498,3333.7,3332.2,2.60161955]
[1768345037294,3.23679498,3333.7,3332.3,2.60161955]
[1768345038990,3.23679498,3333.7,3332.1,0.15011]
[1768345039598,3.23679498,3333.7,3332.1,2.75172955]
[1768345039792,3.23679498,3333.7,3332.2,2.60161955]
[1768345040188,3.23679498,3333.7,3332.2,4.33263093]
[1768345042704,3.50654199,3334.0,3332.2,7.59149155]
[1768345043099,3.50654199,3334.0,3332.3,2.60161955]
[1768345044194,3.50654199,3334.0,3332.4,1.188]
[1768345047198,3.50654199,3334.0,3332.3,2.60161955]
[1768345047496,3.50654199,3334.0,3332.4,1.19]
[1768345048798,3.50654199,3334.0,3332.5,2.60161955]
[1768345049015,3.50654199,3334.0,3332.7,2.60161955]
[1768345049894,0.00241038,3334.1,3332.7,4.48271093]
[1768345050194,0.00241038,3334.1,3332.9,2.60161955]
[1768345050403,0.00241038,3334.1,3333.0,1.191]
[1768345050602,0.00241038,3334.1,3333.0,1.19489123]
[1768345052597,3.50895237,3334.1,3333.1,1.192]
[1768345052794,3.50895237,3334.1,3333.2,1.192]
[1768345053095,3.50895237,3334.1,3333.3,1.192]
[1768345053498,3.50895237,3334.1,3333.0,0.00389123]
[1768345053708,1.73101138,3333.6,3332.5,3.64108234]
[1768345053890,5.23755337,3333.6,3332.5,4.83308234]
[1768345054096,5.23755337,3333.6,3332.5,1.192]
[1768345054595,5.23755337,3333.6,3332.5,1.19512771]
[1768345055595,3.50654199,3333.6,3332.5,1.19512771]
[1768345055795,5.23755337,3333.6,3332.5,1.19512771]
[1768345056401,1.73101138,3333.7,3332.5,1.19512771]
[1768345058802,3.52682664,3334.1,3332.5,1.19512771]
[1768345059104,1.73101138,3333.8,3332.5,1.19512771]
[1768345061409,3.52441626,3333.8,3332.5,1.19512771]
[1768345066002,3.52441626,3333.8,3332.5,3.87161711]
[1768345066498,3.52441626,3333.8,3332.5,1.19512771]
[1768345067107,3.52441626,3333.8,3332.5,3.87161711]
[1768345067801,3.52441626,3333.8,3332.5,1.19512771]
[1768345070008,3.52441626,3333.8,3332.5,0.00312771]
[1768345070201,3.52441626,3333.8,3332.5,1.20012771]
[1768345070407,5.25454388,3333.8,3332.5,0.00312771]
[1768345070609,3.52441626,3333.7,3332.5,1.20012771]
[1768345071518,3.52441626,3333.7,3332.5,0.00312771]
[1768345071814,3.52441626,3333.7,3332.5,1.20012771]
[1768345072313,3.52441626,3333.7,3332.5,0.00312771]
[1768345079702,3.52441626,3333.7,3332.3,2.6764894]
[1768345079908,3.52441626,3333.7,3332.2,2.6764894]
[1768345080217,3.52441626,3333.4,3331.9,2.6764894]
[1768345080408,3.52441626,3333.4,3331.8,4.83808234]
[1768345080608,3.52441626,3333.4,3331.8,1.20059012]
[1768345082911,3.52441626,3333.4,3331.8,1.20159012]
[1768345083619,3.52441626,3332.9,3331.8,0.00359012]
[1768345083818,3.52441626,3332.9,3331.4,2.6764894]
[1768345084111,3.52441626,3332.9,3331.3,3.8744894]
[1768345084315,3.52441626,3332.9,3331.3,1.198]
[1768345084913,3.52441626,3332.9,3331.3,1.20021611]
[1768345086011,3.52441626,3332.9,3331.3,0.00221611]
[1768345088520,3.56989058,3332.7,3331.3,0.00221611]
[1768345095026,3.56989058,3333.4,3331.3,3.26882194]
[1768345096426,3.56989058,3333.4,3331.3,0.00221611]
[1768345098125,3.39663641,3333.2,3331.3,3.56850718]
[1768345098625,3.39663641,3333.2,3331.3,3.71865718]
[1768345108626,3.39663641,3333.2,3331.3,6.39514658]
[1768345108826,3.39663641,3333.2,3331.4,3.56629107]
[1768345112151,3.39663641,3333.2,3331.4,6.24278047]
[1768345112445,3.39663641,3333.2,3331.5,1.201]
[1768345113935,3.39663641,3333.2,3331.6,3.56629107]
[1768345115341,3.39663641,3333.2,3331.7,1.202]
[1768345116236,3.39663641,3333.2,3331.6,1.202]
[1768345118251,3.39663641,3333.2,3331.6,4.72814911]
[1768345119043,3.39663641,3333.2,3331.6,3.52614911]
[1768345119241,3.39663641,3333.2,3331.6,4.72914911]
[1768345121456,3.39663641,3333.2,3331.5,2.6764894]
[1768345121655,3.39663641,3333.2,3331.6,1.203]
[1768345123154,3.39663641,3333.2,3331.4,2.6764894]
[1768345123347,1.73125578,3332.7,3331.5,1.204]
[1768345125457,1.73125578,3332.7,3331.5,3.8804894]
[1768345125958,1.73125578,3332.7,3331.6,1.205]
[1768345126661,1.73125578,3332.7,3331.5,3.8814894]
[1768345126851,1.73125578,3332.7,3331.5,1.205]
[1768345128260,1.73125578,3332.7,3331.5,3.8814894]
[1768345129654,1.73125578,3333.0,3331.6,3.52614911]
[1768345129852,1.73125578,3333.0,3331.7,2.6764894]
[1768345130256,1.73125578,3333.1,3331.8,3.52614911]
[1768345130558,1.73125578,3333.2,3331.9,3.52614911]
[1768345130865,1.73125578,3333.5,3332.1,6.20263851]
[1768345131055,1.73125578,3333.5,3332.3,3.52614911]
[1768345131454,0.00241038,3334.1,3332.3,3.52614911]
[1768345131658,1.73125578,3333.8,3332.4,2.6764894]
[1768345131860,0.00241038,3334.1,3332.5,3.52614911]
[1768345132162,1.73125578,3333.8,3332.5,3.52614911]
[1768345132966,1.73125578,3333.9,3332.5,3.52614911]
[1768345134565,0.00241038,3334.1,3332.5,3.52614911]
[1768345134862,0.00241038,3334.1,3332.5,6.20263851]
[1768345135062,0.00241038,3334.1,3332.6,3.52614911]
[1768345135377,0.00241038,3334.1,3332.8,5.25740489]
[1768345135561,0.00241038,3334.1,3333.1,3.52614911]
[1768345138660,44.55747124,3336.0,3333.1,5.25740489]
[1768345138859,3.55485564,3335.9,3333.8,3.52614911]
[1768345139060,1.73125578,3335.4,3334.0,3.52614911]
[1768345139775,1.73428176,3335.4,3334.0,3.52824838]
[1768345144377,0.00302598,3335.4,3334.3,3.52614911]
[1768345144674,1.73428176,3335.4,3334.3,4.73514911]
[1768345144872,1.73125578,3334.8,3334.0,0.00209927]
[1768345145867,0.00302598,3335.4,3334.0,0.00209927]
[1768345146172,1.73125578,3335.2,3334.0,3.41607745]
[1768345149567,1.73125578,3335.2,3334.0,0.00209927]
[1768345150973,5.14829803,3335.2,3334.0,0.00209927]
[1768345151870,1.73125578,3335.2,3334.0,0.00209927]
[1768345152064,1.73428176,3335.4,3334.0,3.41607745]
[1768345154576,1.73125578,3335.1,3334.0,0.00209927]
[1768345157788,1.73125578,3334.4,3333.0,3.35838554]
[1768345158370,3.41606585,3335.0,3333.0,3.35838554]
[1768345158574,1.73125578,3334.6,3333.0,3.35838554]
[1768345158777,1.73125578,3334.6,3333.0,3.36088258]
[1768345161284,1.73125578,3334.0,3333.0,0.00249704]
[1768345161785,1.73125578,3334.3,3333.0,0.00249704]
[1768345161990,3.41606585,3334.6,3333.0,0.00249704]
[1768345162189,1.73125578,3334.2,3333.0,0.00249704]
[1768345162686,1.73125578,3333.9,3333.0,0.00249704]
[1768345162981,5.14732163,3333.6,3331.8,0.15012]
[1768345163188,1.73125578,3333.3,3331.9,9.31957174]
[1768345163384,1.73125578,3333.3,3331.9,3.002]
[1768345163777,3.41606585,3333.5,3331.9,2.6764894]
[1768345163778,1.73125578,3333.0,3331.9,2.6764894]
[1768345163977,1.73399113,3333.0,3331.9,0.00371545]
[1768345165180,5.15005698,3333.0,3331.9,0.00371545]
[1768345165385,1.73125578,3332.7,3331.9,0.00371545]
[1768345168782,1.73125578,3332.1,3331.1,2.6764894]
[1768345168979,1.73125578,3332.1,3330.8,3.35838554]
[1768345169797,1.73125578,3331.8,3330.8,3.36059164]
[1768345170086,1.73125578,3331.8,3330.8,0.0022061]
[1768345172888,3.64933148,3332.7,3330.8,0.0022061]
[1768345173091,1.73125578,3332.3,3330.8,3.36059164]
[1768345173387,3.41606585,3331.4,3329.5,1.38313226]
[1768345173593,1.73125578,3329.9,3328.4,3.35838554]
[1768345173787,1.73125578,3330.4,3328.6,3.35838554]
[1768345173983,0.05222794,3332.0,3329.2,3.35838554]
[1768345174185,1.73125578,3331.3,3329.5,3.35838554]
[1768345174386,0.00321133,3331.3,3329.8,3.35838554]
[1768345174791,0.00321133,3331.3,3330.0,1.73125578]
[1768345175093,0.00321133,3331.3,3330.1,3.35838554]
[1768345175687,1.73446711,3331.3,3330.1,3.35838554]
[1768345177384,0.00321133,3331.3,3330.1,3.35838554]
[1768345187399,1.73249441,3332.6,3330.1,3.35838554]
[1768345187809,1.73249441,3332.6,3330.3,3.34573036]
[1768345188004,1.73249441,3332.6,3330.3,3.49592036]
[1768345188499,1.73625324,3332.6,3330.3,3.49592036]
[1768345189705,1.73625324,3332.6,3330.5,3.34573036]
[1768345189902,1.73625324,3332.6,3330.5,3.49591036]
[1768345190299,1.73625324,3332.6,3330.7,3.34573036]
[1768345190705,1.73625324,3332.6,3330.8,3.34573036]
[1768345192202,0.00375883,3332.6,3330.8,3.34573036]
[1768345193212,0.00375883,3332.6,3330.8,3.49590036]
[1768345193407,0.00375883,3332.6,3330.9,0.15016]
[1768345193611,0.00375883,3332.6,3331.0,3.34573036]
[1768345193907,0.00375883,3332.6,3331.0,3.49589036]
[1768345194104,0.00375883,3332.6,3331.0,4.70589036]
[1768345194304,0.00375883,3332.6,3331.1,3.34573036]
[1768345195408,1.73249441,3333.7,3331.6,0.15013]
[1768345195605,1.73249441,3333.7,3331.7,3.34573036]
[1768345196510,1.73569675,3333.7,3331.7,3.34573036]
[1768345197313,0.00320234,3333.7,3331.7,3.34573036]
[1768345198410,0.00320234,3333.7,3331.9,3.34573036]
[1768345198605,0.00320234,3333.7,3331.9,3.34804688]
[1768345199002,0.00320234,3333.7,3332.3,3.34573036]
[1768345199210,0.00320234,3333.7,3332.3,3.49583036]
[1768345200115,0.00320234,3333.7,3332.6,3.34573036]
[1768345200314,0.23884395,3334.7,3332.6,3.34573036]
[1768345200518,0.32547553,3335.8,3333.2,3.34573036]
[1768345200713,0.2026156,3336.0,3333.2,3.34573036]
[1768345200923,0.2026156,3336.0,3332.7,1.21]
[1768345200924,0.2026156,3336.0,3333.4,3.34573036]
[1768345201214,0.44103041,3336.0,3333.6,3.34573036]
[1768345201519,3.003,3337.8,3334.5,0.15]
[1768345201714,1.363,3338.8,3335.4,3.34573036]
[1768345202016,3.003,3340.8,3336.7,3.34573036]
[1768345202205,3.003,3340.8,3337.1,3.34573036]
[1768345202206,1.44,3340.7,3337.1,3.34573036]
[1768345202406,0.0035372,3340.7,3337.5,3.34573036]
[1768345202602,0.23882877,3340.7,3337.7,3.34573036]
[1768345203909,0.0035372,3340.7,3337.7,3.34573036]
[1768345204109,0.0035372,3340.7,3337.6,0.718]
[1768345204110,0.0035372,3340.7,3338.0,3.34573036]
[1768345204310,0.0035372,3340.7,3338.0,3.49557036]
[1768345204715,0.0035372,3340.7,3338.5,3.34573036]
[1768345205318,0.0035372,3340.7,3338.6,3.43396866]
[1768345205515,0.20051635,3340.9,3338.6,3.43396866]
[1768345205721,0.20051635,3340.9,3338.8,3.43396866]
[1768345206115,0.23498067,3342.3,3338.8,3.43396866]
[1768345206315,40.8,3342.5,3338.8,3.43396866]
[1768345206521,40.80345536,3342.5,3338.8,3.43396866]
[1768345207024,41.04206095,3342.5,3338.8,3.58377866]
[1768345207323,0.00345536,3342.5,3339.3,3.43396866]
[1768345207519,0.00345536,3342.5,3339.6,3.43396866]
[1768345207716,0.00345536,3342.5,3339.6,3.43609636]
[1768345208623,0.00345536,3342.5,3339.8,3.43396866]
[1768345208831,0.00345536,3342.5,3340.2,3.43396866]
[1768345209118,3.0,3344.3,3340.4,3.43396866]
[1768345209323,1.59288145,3344.2,3340.4,3.43396866]
[1768345210027,1.59526767,3344.2,3340.4,3.43396866]
[1768345210335,0.00238622,3344.2,3340.4,3.43396866]
[1768345210531,0.00238622,3344.2,3340.4,9.43396866]
[1768345210722,0.00238622,3344.2,3340.7,3.43396866]
[1768345210916,0.00238622,3344.2,3341.1,3.58366866]
[1768345211114,0.00238622,3344.2,3340.7,2.94173459]
[1768345211115,2.94173459,3346.2,3341.3,3.43396866]
[1768345211317,1.70750822,3346.6,3341.6,3.43396866]
[1768345211620,1.70750822,3346.4,3341.6,3.43396866]
[1768345211820,1.70750822,3346.4,3342.0,3.43396866]
[1768345212022,1.70750822,3346.4,3342.2,3.58362866]
[1768345212222,0.00373837,3346.4,3342.8,0.14963]
[1768345212421,0.00373837,3346.4,3343.0,3.43396866]
[1768345213122,0.00373837,3346.4,3343.0,3.58358866]
[1768345213924,0.00373837,3346.4,3343.2,3.43396866]
[1768345214122,0.00373837,3346.4,3343.4,3.43396866]
[1768345214826,1.69887251,3349.7,3344.8,3.43396866]
[1768345215030,1.69887251,3349.7,3345.0,3.43396866]
[1768345215330,40.8,3349.6,3345.3,3.43396866]
[1768345215523,40.8,3349.6,3345.3,3.58348866]
[1768345215725,0.2013809,3349.0,3345.5,3.43396866]
[1768345216026,0.2013809,3349.0,3345.7,3.43396866]
[1768345216231,0.2013809,3349.0,3346.1,3.58344866]
[1768345216532,2.18629911,3350.4,3347.2,3.43396866]
[1768345216730,2.18629911,3350.0,3347.2,3.43396866]
[1768345216926,2.18629911,3349.9,3347.2,3.43396866]
[1768345217430,2.18948105,3349.9,3347.2,3.43396866]
[1768345218327,2.18948105,3349.9,3345.3,0.00324447]
[1768345218328,0.00318194,3349.9,3348.3,3.52721944]
[1768345218628,0.00318194,3349.9,3348.3,0.0036055]
[1768345219427,6.0,3349.8,3348.3,0.0036055]
[1768345220434,2.19644324,3349.7,3348.3,0.0036055]
[1768345220628,2.19644324,3349.7,3347.2,0.14943]
[1768345220933,0.00318194,3349.9,3347.2,3.67664944]
[1768345221531,0.00318194,3349.9,3347.2,3.68020974]
[1768345221737,2.13214589,3349.8,3347.2,3.68020974]
[1768345222124,0.00318194,3349.9,3347.2,3.68020974]
[1768345222538,2.13532783,3349.9,3347.2,3.68020974]
[1768345223126,2.0881613,3349.8,3347.2,0.0035603]
[1768345223332,2.0881613,3349.3,3346.3,2.993]
[1768345223640,2.0881613,3349.1,3346.0,3.52721944]
[1768345224425,2.06825545,3349.1,3346.0,3.52950839]
[1768345224629,46.8,3349.0,3346.3,3.52721944]
[1768345224926,1.441,3349.3,3346.5,3.52721944]
[1768345225340,46.8,3349.2,3346.5,3.52721944]
[1768345225938,2.94173459,3349.0,3346.0,0.00228895]
[1768345226242,2.94173459,3349.0,3345.1,2.992]
[1768345226243,2.94173459,3348.2,3345.1,3.52721944]
[1768345226443,2.00873659,3348.0,3345.1,3.52721944]
[1768345226650,2.00873659,3347.8,3345.1,3.52721944]
[1768345226944,2.00873659,3347.8,3344.9,0.14954]
[1768345227141,2.18359896,3347.6,3344.9,0.14954]
[1768345227337,2.18359896,3347.6,3344.9,0.1529075]
[1768345227534,2.94173459,3346.6,3343.9,0.19844301]
[1768345227739,2.18359896,3346.4,3343.9,0.19844301]